[Event "POR-ch Absolute 2018"]
[Site "Braga"]
[Date "2018.09.04"]
[Round "3"]
[White "Martins, Bruno Andre Leite"]
[Black "Rocha, Sergio"]
[Result "1/2-1/2"]
[ECO "B01"]
[WhiteElo "2262"]
[BlackElo "2379"]
[Annotator "RC"]
[PlyCount "105"]
[EventDate "2018.09.02"]
[EventType "tourn"]
[EventCountry "POR"]
[SourceTitle "playchess.com"]
[Source "ChessBase"]
[SourceQuality "1"]
[TimeControl "40/5400+30:1800+30"]

1. e4 {[%emt 0:00:00]} d5 {[%emt 0:00:05]} 2. exd5 Qxd5 {[%emt 0:00:06]} 3. Nc3 {[%emt 0:00:00]} Qa5 {[%emt 0:00:05]} 4. d4 {[%emt 0:00:00]} Nf6 {[%emt 0:00:07]} 5. Nf3 {[%emt 0:00:14]} c6 {[%emt 0:00:05]} 6. Bc4 {[%emt 0:00:49]} Bf5 {[%emt 0:01:03]} 7. Ne5 {[%emt 0:01:52]} e6 {[%emt 0:00:15]} 8. g4 {[%emt 0:00:44]} Be4 {[%emt 0:00:30]} 9. O-O {[%emt 0:10:03]} Bd5 {[%emt 0:00:32]} 10. Qe2 {[%emt 0:02:58]} Nbd7 11. Nxd5 cxd5 12. Bb5 a6 13. Bxd7+ Nxd7 14. Nxd7 Kxd7 15. Bd2 Qc7 16. Qf3 f6 17. c4 dxc4 18. Bf4 Bd6 19. Bxd6 Kxd6 20. b3 c3 21. Rac1 Rac8 22. Rfe1 Qc6 23. d5 exd5 24. Qf4+ Kd7 25. Qf5+ Kc7 26. Re6 Qc5 27. Rxc3 Qxc3 28. Qf4+ Qe5 29. Rxe5 fxe5 30. Qxe5+ Kc6 31. Qc3+ Kb6 32. Qxg7 Rcd8 33. Qd4+ Kc6 34. b4 b6 35. a4 Rhe8 36. a5 bxa5 37. bxa5 Kb5 38. h4 Kxa5 39. g5 Kb5 40. Qd3+ Kc5 41. Qxh7 d4 42. Qd3 Rh8 43. g6 Rxh4 44. Qf5+ Rd5 45. Qc8+ Kb5 46. Qb7+ Kc4 47. Qxa6+ Kc5 48. Qa7+ Kc4 49. Qa6+ Kc5 50. Qc8+ Kb5 51. Qe8+ Kc4 52. Qa4+ Kc5 53. Qa7+ 1/2-1/2

[Event "POR-ch Absolute 2018"]
[Site "Braga"]
[Date "2018.09.05"]
[Round "4"]
[White "Fernandes, Antonio"]
[Black "Sousa, Andre Ventura"]
[Result "0-1"]
[ECO "C44"]
[WhiteElo "2389"]
[BlackElo "2365"]
[Annotator "NA RC"]
[PlyCount "65"]
[EventDate "2018.09.02"]
[EventType "tourn"]
[EventCountry "POR"]
[SourceTitle "playchess.com"]
[Source "ChessBase"]
[SourceQuality "1"]
[TimeControl "40/5400+30:1800+30"]

1. e4 e5 2. Nf3 Nc6 3. d4 exd4 4. Nxd4 Bb4+ 5. c3 Bc5 6. Be3 Bb6 7. f3 Nf6 8. Qd2 O-O 9. c4 Ne5 10. Nc3 c6 11. Be2 d5 12. cxd5 cxd5 13. f4 Nc4 14. Bxc4 dxc4 15. O-O-O Bg4 16. Nf3 Qxd2+ 17. Bxd2 Rad8 18. Rde1 Bxf3 19. gxf3 Rd3 20. Rhf1 Rfd8 21. Re2 Rxd2 22. Rxd2 Be3 23. Rfd1 Bxf4 24. Kc2 Rxd2+ 25. Rxd2 Bxd2 26. Kxd2 Nd7 27. f4 Kf8 28. Ke3 Nc5 29. f5 Nd3 30. b3 Ne5 31. bxc4 Nxc4+ 32. Kd4 Nd6 33. Nd5 0-1

[Event "POR-ch Absolute 2018"]
[Site "Braga"]
[Date "2018.09.05"]
[Round "4"]
[White "Rego, Pedro Filipe"]
[Black "Silva, Luis Neves Da"]
[Result "1/2-1/2"]
[ECO "C44"]
[WhiteElo "2270"]
[BlackElo "2353"]
[Annotator "NA"]
[PlyCount "69"]
[EventDate "2018.09.02"]
[EventType "tourn"]
[EventCountry "POR"]
[SourceTitle "playchess.com"]
[Source "ChessBase"]
[SourceQuality "1"]
[TimeControl "40/5400+30:1800+30"]

1. e4 {[%emt 0:00:00]} e5 {[%emt 0:00:00]} 2. Nf3 {[%emt 0:00:00]} Nc6 {[%emt 0:00:00]} 3. d4 {[%emt 0:00:24]} exd4 {[%emt 0:00:02]} 4. Nxd4 {[%emt 0:00:10]} Nf6 {[%emt 0:00:08]} 5. Nc3 {[%emt 0:05:02]} Bb4 {[%emt 0:00:25]} 6. Nxc6 {[%emt 0:00:04]} bxc6 {[%emt 0:00:04]} 7. Bd3 {[%emt 0:00:05]} d5 {[%emt 0:00:03]} 8. exd5 {[%emt 0:00:07]} O-O {[%emt 0:00:05]} 9. O-O {[%emt 0:01:37]} Bg4 {[%emt 0:00:03]} 10. f3 {[%emt 0:25:40]} Bh5 {[%emt 0:00:06]} 11. Bg5 {[%emt 0:00:45]} Bxc3 {[%emt 0:09:07]} 12. bxc3 {[%emt 0:00:17]} cxd5 {[%emt 0:00:12]} 13. Qd2 {[%emt 0:02:34]} Qd6 {[%emt 0:07:41]} 14. Qf4 {[%emt 0:01:54]} Qc5+ {[%emt 0:28:01]} 15. Qd4 {[%emt 0:01:18]} Qxd4+ {[%emt 0:00:15]} 16. cxd4 {[%emt 0:00:05]} Bg6 {[%emt 0:00:10]} 17. Rab1 {[%emt 0:06:35]} Rfe8 {[%emt 0:03:35]} 18. Kf2 {[%emt 0:00:51]} Re6 {[%emt 0:02:26]} 19. Rfe1 {[%emt 0:00:56]} Bxd3 {[%emt 0:09:02]} 20. cxd3 {[%emt 0:01:05]} Rxe1 {[%emt 0:03:05]} 21. Kxe1 {[%emt 0:00:21]} Nd7 {[%emt 0:00:13]} 22. Rb7 {[%emt 0:01:39]} Nf8 {[%emt 0:01:05]} 23. Bf4 {[%emt 0:04:49]} c6 {[%emt 0:14:49]} 24. Rb8 {[%emt 0:01:33]} Rxb8 {[%emt 0:00:07]} 25. Bxb8 {[%emt 0:00:01]} a6 {[%emt 0:01:26]} 26. Kd2 {[%emt 0:00:14]} Ne6 {[%emt 0:00:48]} 27. Kc3 {[%emt 0:01:31]} Nd8 {[%emt 0:00:01]} 28. Bc7 {[%emt 0:02:05]} Nb7 {[%emt 0:00:02]} 29. Kd2 {[%emt 0:16:59]} Kf8 {[%emt 0:00:04]} 30. Ke3 {[%emt 0:02:25]} Ke7 {[%emt 0:00:01]} 31. Bb8 {[%emt 0:00:47]} Ke6 {[%emt 0:02:01]} 32. g4 {[%emt 0:01:01]} f6 {[%emt 0:00:21]} 33. h4 Nd8 34. f4 {[%emt 0:04:59]} f5 {[%emt 0:00:13]} 35. g5 {[%emt 0:00:09] Ke5 Ke4+} 1/2-1/2

[Event "POR-ch Absolute 2018"]
[Site "Braga"]
[Date "2018.09.05"]
[Round "4"]
[White "Martins, Bruno Andre Leite"]
[Black "Vasques, Antonio Pedro Freix"]
[Result "0-1"]
[ECO "B31"]
[WhiteElo "2262"]
[BlackElo "2239"]
[Annotator "NA"]
[PlyCount "80"]
[EventDate "2018.09.02"]
[EventType "tourn"]
[EventCountry "POR"]
[SourceTitle "playchess.com"]
[Source "ChessBase"]
[SourceQuality "1"]
[TimeControl "40/5400+30:1800+30"]

1. e4 {[%emt 0:00:00]} c5 {[%emt 0:05:06]} 2. Nf3 {[%emt 0:00:00]} Nc6 {[%emt 0:00:28]} 3. Bb5 {[%emt 0:00:00]} g6 {[%emt 0:00:46]} 4. Bxc6 {[%emt 0:00:20]} dxc6 {[%emt 0:00:10]} 5. d3 {[%emt 0:00:17]} Bg7 {[%emt 0:00:14]} 6. h3 {[%emt 0:00:15]} e5 {[%emt 0:03:04]} 7. Nc3 {[%emt 0:00:50]} Nf6 {[%emt 0:05:50]} 8. Be3 {[%emt 0:04:56]} Qd6 {[%emt 0:08:35]} 9. Qd2 {[%emt 0:04:57]} O-O {[%emt 0:07:10]} 10. Bh6 {[%emt 0:00:50]} b6 {[%emt 0:30:26]} 11. Bxg7 {[%emt 0:00:21]} Kxg7 {[%emt 0:00:01]} 12. b3 {[%emt 0:00:28]} Ne8 {[%emt 0:00:51]} 13. Ne2 {[%emt 0:01:04]} Nc7 {[%emt 0:00:31]} 14. h4 {[%emt 0:08:44]} h5 {[%emt 0:04:58]} 15. Nh2 {[%emt 0:24:07]} f5 {[%emt 0:07:41]} 16. exf5 {[%emt 0:04:34]} Bxf5 {[%emt 0:00:37]} 17. Ng3 {[%emt 0:05:12]} Qd4 {[%emt 0:02:58]} 18. Rd1 {[%emt 0:09:09]} Qxh4 {[%emt 0:01:03]} 19. Nf3 {[%emt 0:06:53]} Qf4 {[%emt 0:00:27]} 20. Nxf5+ {[%emt 0:00:55]} Rxf5 {[%emt 0:01:50]} 21. Qe2 {[%emt 0:00:30]} Qb4+ {[%emt 0:02:36]} 22. Kf1 {[%emt 0:00:23]} Re8 {[%emt 0:01:54]} 23. Qe4 {[%emt 0:14:14]} Re6 {[%emt 0:05:15]} 24. c4 {[%emt 0:07:34]} Rf4 {[%emt 0:01:57]} 25. Qe3 {[%emt 0:00:23]} Qc3 {[%emt 0:01:06]} 26. g3 {[%emt 0:04:37]} Rf8 {[%emt 0:01:02]} 27. Re1 {[%emt 0:00:28]} Ref6 {[%emt 0:04:31]} 28. Nxe5 {[%emt 0:00:15]} Rxf2+ {[%emt 0:00:24]} 29. Qxf2 {[%emt 0:00:05]} Rxf2+ {[%emt 0:00:02]} 30. Kxf2 {[%emt 0:00:05]} Ne6 {[%emt 0:00:43]} 31. Nf3 {[%emt 0:01:27]} Nd4 {[%emt 0:00:44]} 32. Nxd4 {[%emt 0:00:08]} cxd4 {[%emt 0:00:25]} 33. Re7+ {[%emt 0:00:49]} Kf6 {[%emt 0:00:09]} 34. Rhe1 {[%emt 0:01:04]} Qxd3 {[%emt 0:00:32]} 35. R1e6+ {[%emt 0:00:36]} Kg5 {[%emt 0:00:05]} 36. Re5+ {[%emt 0:00:16]} Kg4 {[%emt 0:00:32]} 37. Re4+ {[%emt 0:00:05]} Kg5 {[%emt 0:00:08]} 38. R4e5+ {[%emt 0:00:06]} Kh6 {[%emt 0:00:40]} 39. Rxa7 {[%emt 0:00:18]} Qc2+ {[%emt 0:00:10]} 40. Re2 {[%emt 0:00:00]} d3 {[%emt 0:00:00]} 0-1

[Event "POR-ch Absolute 2018"]
[Site "Braga"]
[Date "2018.09.05"]
[Round "4"]
[White "Veiga, Jose Francisco R P "]
[Black "Martins, David Pires Tavares"]
[Result "1/2-1/2"]
[ECO "C41"]
[WhiteElo "2231"]
[BlackElo "2402"]
[Annotator "NA"]
[PlyCount "81"]
[EventDate "2018.09.02"]
[EventType "tourn"]
[EventCountry "POR"]
[SourceTitle "playchess.com"]
[Source "ChessBase"]
[SourceQuality "1"]
[TimeControl "40/5400+30:1800+30"]

1. e4 {[%emt 0:06:00]} d6 {[%emt 0:00:20]} 2. d4 {[%emt 0:00:36]} Nf6 {[%emt 0:00:06]} 3. Nc3 {[%emt 0:00:04]} e5 {[%emt 0:00:05]} 4. Nf3 {[%emt 0:00:30]} Nbd7 {[%emt 0:05:01]} 5. Bc4 {[%emt 0:00:24]} Be7 {[%emt 0:00:17]} 6. O-O {[%emt 0:00:14]} O-O {[%emt 0:00:07]} 7. Re1 {[%emt 0:00:18]} a6 {[%emt 0:00:48]} 8. a4 {[%emt 0:00:14]} b6 9. b3 {[%emt 0:03:00]} Bb7 {[%emt 0:01:13]} 10. Bb2 {[%emt 0:00:30]} exd4 {[%emt 0:01:04]} 11. Qxd4 {[%emt 0:01:20]} Re8 {[%emt 0:01:59]} 12. Nd5 {[%emt 0:13:41]} Bf8 {[%emt 0:00:21]} 13. Nxf6+ {[%emt 0:04:46]} Qxf6 {[%emt 0:02:38]} 14. Qxf6 {[%emt 0:00:31]} Nxf6 {[%emt 0:00:06]} 15. Bxf6 {[%emt 0:04:18]} gxf6 {[%emt 0:00:05]} 16. Bd5 {[%emt 0:00:15]} c6 {[%emt 0:00:28]} 17. Bc4 {[%emt 0:00:05]} f5 {[%emt 0:08:59]} 18. exf5 {[%emt 0:05:07]} d5 {[%emt 0:00:09]} 19. Bd3 {[%emt 0:00:08]} Bb4 {[%emt 0:00:09]} 20. Rxe8+ {[%emt 0:02:30]} Rxe8 {[%emt 0:00:08]} 21. Rd1 {[%emt 0:05:41]} c5 {[%emt 0:03:12]} 22. Kf1 {[%emt 0:05:25]} Kg7 {[%emt 0:06:52]} 23. h4 {[%emt 0:07:46]} h6 {[%emt 0:02:23]} 24. g4 {[%emt 0:04:00]} Bc3 {[%emt 0:17:39]} 25. Kg2 {[%emt 0:01:22]} c4 {[%emt 0:05:35]} 26. bxc4 {[%emt 0:04:38]} dxc4 {[%emt 0:00:06]} 27. Bf1 {[%emt 0:00:06]} b5 {[%emt 0:01:32]} 28. Kg3 {[%emt 0:13:33]} Be4 {[%emt 0:03:04]} 29. Kf4 {[%emt 0:01:55]} bxa4 {[%emt 0:15:04]} 30. g5 {[%emt 0:03:24]} hxg5+ {[%emt 0:08:23]} 31. Nxg5 {[%emt 0:00:49]} Bxc2 {[%emt 0:02:24]} 32. Rd7 {[%emt 0:00:37]} Bd3 {[%emt 0:00:24]} 33. Bxd3 {[%emt 0:02:58]} cxd3 {[%emt 0:00:08]} 34. Rxd3 {[%emt 0:00:16]} Bb2 {[%emt 0:00:38]} 35. Rd7 {[%emt 0:02:16]} a3 {[%emt 0:15:18]} 36. Rxf7+ {[%emt 0:00:04]} Kg8 {[%emt 0:00:03]} 37. f6 {[%emt 0:00:32]} Rf8 {[%emt 0:00:08]} 38. Rg7+ {[%emt 0:04:21]} Kh8 {[%emt 0:00:05]} 39. Rh7+ {[%emt 0:00:05]} Kg8 {[%emt 0:00:03]} 40. Rg7+ {[%emt 0:00:00]} Kh8 {[%emt 0:00:00]} 41. Ke4 1/2-1/2

[Event "POR-ch Absolute 2018"]
[Site "Braga"]
[Date "2018.09.06"]
[Round "6"]
[White "Rego, Pedro Filipe"]
[Black "Padeiro, Jose"]
[Result "0-1"]
[ECO "A06"]
[WhiteElo "2270"]
[BlackElo "2209"]
[Annotator "NA"]
[PlyCount "116"]
[EventDate "2018.09.02"]
[EventType "tourn"]
[EventCountry "POR"]
[SourceTitle "playchess.com"]
[Source "ChessBase"]
[SourceQuality "1"]
[TimeControl "40/5400+30:1800+30"]

1. Nf3 {[%emt 0:00:00]} d5 {[%emt 0:00:51]} 2. d4 {[%emt 0:00:09]} c6 {[%emt 0:00:23]} 3. g3 {[%emt 0:00:22]} Bf5 {[%emt 0:00:29]} 4. Bg2 {[%emt 0:00:28]} Nf6 {[%emt 0:00:08]} 5. c4 {[%emt 0:00:20]} e6 {[%emt 0:00:04]} 6. O-O {[%emt 0:00:13]} Nbd7 {[%emt 0:00:35]} 7. b3 {[%emt 0:00:47]} h6 {[%emt 0:00:36]} 8. Bb2 {[%emt 0:00:31] D11: Slav Defence: 3 Nf3 sidelines and 3...Nf6 4 e3 Bg4} Bd6 {[%emt 0:03:02]} (8... Be7 9. Nfd2 O-O 10. Nc3 a5 11. e3 Qb6 12. Qe2 Rfe8 13. Rfc1 Rad8 14. a3 Bf8 15. Qf1 Bg6 16. h3 Qa7 17. b4 axb4 18. axb4 {1-0 (123) Nakamura,H (2769)-Caruana,F (2816) Paris 2018}) 9. Nc3 {[%emt 0:01:08]} Ne4 {[%emt 0:02:00]} 10. Nd2 {[%emt 0:00:53]} Nxc3 {[%emt 0:02:48]} 11. Bxc3 {[%emt 0:00:05]} Nf6 {[%emt 0:00:06]} 12. e4 $146 {[%emt 0:10:22]} ({Predecessor:} 12. b4 O-O 13. f3 Bh7 14. e4 Bc7 15. e5 Nd7 {1-0 (34) Burmakin,V (2575)-Saric,A (2350) Nova Gorica 2003}) 12... dxe4 {[%emt 0:02:13]} 13. Qe2 {[%emt 0:00:51]} O-O {[%emt 0:00:37]} 14. Nxe4 {[%emt 0:00:12]} Nxe4 {[%emt 0:00:03]} 15. Bxe4 {[%emt 0:00:06]} Bxe4 {[%emt 0:00:03]} 16. Qxe4 {[%emt 0:00:06]} Be7 {[%emt 0:01:49]} 17. Rad1 {[%emt 0:01:15]} Bf6 {[%emt 0:00:18]} 18. Rd3 {[%emt 0:00:22]} Qe7 {[%emt 0:12:12]} 19. Re1 {[%emt 0:01:33]} Rfe8 {[%emt 0:00:57]} 20. a4 {[%emt 0:06:31]} Rad8 {[%emt 0:00:57]} 21. Red1 {[%emt 0:04:53]} c5 {[%emt 0:03:32]} 22. Qf3 {[%emt 0:15:15]} cxd4 {[%emt 0:02:45]} 23. Bxd4 {[%emt 0:00:22]} e5 {[%emt 0:00:54]} 24. Bc3 {[%emt 0:17:58]} e4 {[%emt 0:11:32]} 25. Bxf6 {[%emt 0:00:11]} Rxd3 {[%emt 0:00:17]} 26. Qxd3 {[%emt 0:01:49]} Qxf6 {[%emt 0:00:24]} 27. Qd7 {[%emt 0:04:21]} Qe7 {[%emt 0:05:10]} 28. Qxe7 {[%emt 0:00:46]} Rxe7 {[%emt 0:00:02]} 29. Kf1 {[%emt 0:00:24]} f5 {[%emt 0:00:31]} 30. Ke2 {[%emt 0:00:05]} Kf7 {[%emt 0:00:06]} 31. Ke3 {[%emt 0:00:12]} Ke6 {[%emt 0:01:21]} 32. h4 {[%emt 0:08:38]} g5 {[%emt 0:01:50]} 33. hxg5 {[%emt 0:00:05]} hxg5 {[%emt 0:00:01]} 34. Rd5 {[%emt 0:04:01]} Rh7 {[%emt 0:00:21]} 35. Rd8 {[%emt 0:01:42]} b6 {[%emt 0:02:27]} 36. Re8+ {[%emt 0:01:33]} Kf6 {[%emt 0:00:47]} 37. Rf8+ {[%emt 0:02:06]} Ke5 {[%emt 0:00:24]} 38. Re8+ {[%emt 0:01:16]} Kf6 {[%emt 0:00:10]} 39. Rd8 {[%emt 0:10:39]} Rh1 {[%emt 0:01:59]} 40. Rd6+ {[%emt 0:00:00]} Ke5 {[%emt 0:00:00]} 41. Rd5+ {[%emt 0:01:57]} Ke6 {[%emt 0:01:13]} 42. Rb5 {[%emt 0:01:26]} Rd1 {[%emt 0:01:38]} 43. Ke2 {[%emt 0:01:19]} Rb1 {[%emt 0:01:01]} 44. Ke3 {[%emt 0:01:09]} Re1+ {[%emt 0:01:04]} 45. Kd2 {[%emt 0:00:05]} Rf1 {[%emt 0:00:05]} 46. Ke2 {[%emt 0:00:20]} Rb1 {[%emt 0:00:03]} 47. Kd2 {[%emt 0:02:56]} Kf6 {[%emt 0:02:25]} 48. Ke3 {[%emt 0:01:29]} Rd1 {[%emt 0:00:50]} 49. Ke2 {[%emt 0:00:19]} Rd3 $11 {[%emt 0:00:39]} 50. b4 {[%emt 0:00:05]} Ra3 {[%emt 0:02:13]} 51. a5 {[%emt 0:00:19]} bxa5 {[%emt 0:00:06]} 52. bxa5 {[%emt 0:00:32]} f4 {[%emt 0:00:28]} 53. gxf4 {[%emt 0:02:43]} gxf4 {[%emt 0:00:12]} 54. Kf1 {[%emt 0:04:46]} f3 {[%emt 0:02:33]} 55. Kg1 {[%emt 0:00:10]} Ra1+ {[%emt 0:00:42]} 56. Kh2 {[%emt 0:00:03]} e3 {[%emt 0:00:12]} 57. Rb3 {[%emt 0:03:41]} e2 {[%emt 0:01:23]} 58. Rxf3+ {[%emt 0:00:03]} Kg5 {[%emt 0:00:04]} 0-1

[Event "POR-ch Absolute 2018"]
[Site "Braga"]
[Date "2018.09.07"]
[Round "7"]
[White "Martins, David Pires Tavares"]
[Black "Martins, Bruno Andre Leite"]
[Result "1-0"]
[ECO "E75"]
[WhiteElo "2402"]
[BlackElo "2262"]
[Annotator "ChessBase"]
[PlyCount "57"]
[EventDate "2018.09.02"]
[EventType "tourn"]
[EventCountry "POR"]
[SourceTitle "playchess.com"]
[Source "ChessBase"]
[SourceQuality "1"]
[TimeControl "40/5400+30:1800+30"]

1. d4 {[%emt 0:03:06]} Nf6 {[%emt 0:00:00]} 2. c4 {[%emt 0:00:05]} g6 {[%emt 0:00:00]} 3. Nc3 {[%emt 0:00:05]} Bg7 {[%emt 0:00:02]} 4. e4 {[%emt 0:00:06]} d6 {[%emt 0:00:14]} 5. Be2 {[%emt 0:00:05]} O-O {[%emt 0:00:07]} 6. Bg5 {[%emt 0:00:04]} c5 {[%emt 0:00:25]} 7. d5 {[%emt 0:00:06]} e6 {[%emt 0:00:06]} 8. Qd2 {[%emt 0:00:40]} exd5 {[%emt 0:00:25]} 9. exd5 {[%emt 0:00:08]} Qb6 {[%emt 0:06:24]} 10. Nf3 {[%emt 0:02:19]} Bf5 {[%emt 0:02:01]} 11. Nh4 {[%emt 0:00:08]} Ne4 {[%emt 0:04:45]} 12. Nxe4 {[%emt 0:00:37]} Bxe4 {[%emt 0:00:08]} 13. f3 {[%emt 0:00:48]} h6 {[%emt 0:07:38]} 14. Bxh6 {[%emt 0:01:14]} Bxh6 {[%emt 0:00:27]} 15. Qxh6 {[%emt 0:00:12]} Qxb2 {[%emt 0:00:09]} 16. Rc1 {[%emt 0:00:21]} Re8 {[%emt 0:01:25]} 17. O-O {[%emt 0:08:51]} Qxe2 {[%emt 0:02:17]} 18. fxe4 {[%emt 0:00:30]} Qxe4 {[%emt 0:01:03]} 19. Rxf7 {[%emt 0:02:11]} Qe3+ {[%emt 0:19:22]} 20. Qxe3 {[%emt 0:00:08]} Rxe3 {[%emt 0:00:07]} 21. Rxb7 {[%emt 0:02:32]} Na6 {[%emt 0:02:41]} 22. Nxg6 {[%emt 0:00:19]} Rae8 {[%emt 0:00:28]} 23. a3 {[%emt 0:01:31]} Rxa3 {[%emt 0:02:08]} 24. Rxa7 {[%emt 0:00:24]} Ra2 {[%emt 0:00:36]} 25. Ne7+ {[%emt 0:03:18]} Kh8 {[%emt 0:02:04]} 26. Re1 {[%emt 0:00:10]} Rb8 {[%emt 0:00:52]} 27. Ng6+ {[%emt 0:00:10]} Kg8 {[%emt 0:00:21]} 28. h4 {[%emt 0:00:08]} Nb4 {[%emt 0:01:24]} 29. Rd7 {[%emt 0:00:09]} 1-0

[Event "POR-ch Absolute 2018"]
[Site "Braga"]
[Date "2018.09.07"]
[Round "7"]
[White "Sousa, Andre Ventura"]
[Black "Rocha, Sergio"]
[Result "*"]
[ECO "B03"]
[WhiteElo "2365"]
[BlackElo "2379"]
[Annotator "NA"]
[PlyCount "27"]
[EventDate "2018.09.02"]
[EventType "tourn"]
[EventCountry "POR"]
[SourceTitle "playchess.com"]
[Source "ChessBase"]
[SourceQuality "1"]
[TimeControl "40/5400+30:1800+30"]

1. e4 {[%emt 0:00:00]} Nf6 {[%emt 0:04:11]} 2. e5 {[%emt 0:00:00]} Nd5 {[%emt 0:00:06]} 3. d4 {[%emt 0:00:00]} d6 {[%emt 0:00:05]} 4. Nf3 {[%emt 0:00:00]} c6 {[%emt 0:00:28]} 5. Be2 {[%emt 0:00:00]} Bg4 {[%emt 0:00:46]} 6. h3 {[%emt 0:01:56]} Bxf3 {[%emt 0:00:34]} 7. Bxf3 {[%emt 0:00:04]} e6 {[%emt 0:00:06]} 8. O-O {[%emt 0:00:50]} Nd7 {[%emt 0:00:24]} 9. Re1 {[%emt 0:04:16]} dxe5 {[%emt 0:07:09]} 10. dxe5 {[%emt 0:01:14]} Bc5 {[%emt 0:03:12]} 11. Nd2 {[%emt 0:10:00]} Bd4 {[%emt 0:07:29]} 12. Bxd5 {[%emt 0:10:29]} cxd5 {[%emt 0:01:35]} 13. Nf3 {[%emt 0:01:11]} Bc5 {[%emt 0:00:12]} 14. Be3 {[%emt 0:09:27]} *

[Event "POR-ch Absolute 2018"]
[Site "Braga"]
[Date "2018.09.07"]
[Round "7"]
[White "Silva, Luis Neves Da"]
[Black "Vasques, Antonio Pedro Freix"]
[Result "1/2-1/2"]
[ECO "A05"]
[WhiteElo "2353"]
[BlackElo "2239"]
[Annotator "NA"]
[PlyCount "75"]
[EventDate "2018.09.02"]
[EventType "tourn"]
[EventCountry "POR"]
[SourceTitle "playchess.com"]
[Source "ChessBase"]
[SourceQuality "1"]
[TimeControl "40/5400+30:1800+30"]

1. Nf3 {[%emt 0:00:00]} Nf6 {[%emt 0:12:09]} 2. g3 {[%emt 0:00:00]} g6 {[%emt 0:00:13]} 3. b3 {[%emt 0:00:00]} Bg7 {[%emt 0:00:30]} 4. Bb2 {[%emt 0:00:00]} O-O {[%emt 0:00:19]} 5. Bg2 {[%emt 0:00:03]} a5 {[%emt 0:00:34]} 6. c4 {[%emt 0:05:08]} c6 {[%emt 0:02:21]} 7. O-O {[%emt 0:00:34]} d5 {[%emt 0:03:08]} 8. Nc3 {[%emt 0:01:35]} Ne4 {[%emt 0:06:03]} 9. Na4 {[%emt 0:00:01]} Bxb2 {[%emt 0:17:23]} 10. Nxb2 {[%emt 0:01:56]} Nd7 {[%emt 0:01:31]} 11. d4 {[%emt 0:12:50]} b6 {[%emt 0:10:56]} 12. Rc1 {[%emt 0:01:53]} Bb7 {[%emt 0:01:35]} 13. Nd3 {[%emt 0:00:29]} a4 {[%emt 0:07:25]} 14. cxd5 {[%emt 0:02:40]} cxd5 {[%emt 0:00:04]} 15. bxa4 {[%emt 0:00:58]} e6 {[%emt 0:01:54]} 16. Qb3 {[%emt 0:04:22]} Ba6 {[%emt 0:01:09]} 17. Rc2 {[%emt 0:00:54]} Nd6 $14 {[%emt 0:19:23]} 18. Rb1 {[%emt 0:04:42]} Nc4 {[%emt 0:03:48]} 19. Bf1 {[%emt 0:06:13]} Qe7 {[%emt 0:01:03]} 20. Rbc1 {[%emt 0:02:27]} Rfb8 {[%emt 0:00:22]} 21. Nb4 {[%emt 0:05:33]} Na5 {[%emt 0:00:42]} 22. Qc3 {[%emt 0:02:53]} Rc8 {[%emt 0:01:10]} 23. Qe1 {[%emt 0:02:34]} Rxc2 {[%emt 0:00:35]} 24. Rxc2 {[%emt 0:00:16]} Bc4 {[%emt 0:00:04]} 25. Qb1 {[%emt 0:07:18]} Nb7 {[%emt 0:02:26]} 26. Nc6 {[%emt 0:00:50]} Qd6 {[%emt 0:00:28]} 27. Nce5 {[%emt 0:02:01]} Nxe5 {[%emt 0:00:37]} 28. dxe5 {[%emt 0:14:46]} Qc5 {[%emt 0:00:03]} 29. Rb2 {[%emt 0:00:09]} Rxa4 {[%emt 0:00:34]} 30. Rxb6 {[%emt 0:00:30]} Bxa2 {[%emt 0:01:05]} 31. Qb2 {[%emt 0:00:19]} Na5 {[%emt 0:00:07]} 32. Rb8+ {[%emt 0:07:14]} Kg7 {[%emt 0:00:01]} 33. Qd2 {[%emt 0:00:32]} Qc7 {[%emt 0:00:38]} 34. Re8 {[%emt 0:00:51]} Qd7 {[%emt 0:00:16]} 35. Rb8 {[%emt 0:00:35]} Qc7 {[%emt 0:00:04]} 36. Qb2 {[%emt 0:04:15]} Bc4 {[%emt 0:03:31]} 37. h4 {[%emt 0:00:38]} Ba6 {[%emt 0:02:14]} 38. Qb6 1/2-1/2

[Event "POR-ch Absolute 2018"]
[Site "Braga"]
[Date "2018.09.07"]
[Round "7"]
[White "Veiga, Jose Francisco R P "]
[Black "Rego, Pedro Filipe"]
[Result "1-0"]
[ECO "B48"]
[WhiteElo "2231"]
[BlackElo "2270"]
[Annotator "NA"]
[PlyCount "67"]
[EventDate "2018.09.02"]
[EventType "tourn"]
[EventCountry "POR"]
[SourceTitle "playchess.com"]
[Source "ChessBase"]
[SourceQuality "1"]
[TimeControl "40/5400+30:1800+30"]

1. e4 {[%emt 0:04:34]} c5 {[%emt 0:00:00]} 2. Nf3 {[%emt 0:01:14]} e6 {[%emt 0:00:00]} 3. d4 {[%emt 0:00:09]} cxd4 {[%emt 0:00:00]} 4. Nxd4 {[%emt 0:00:06]} Nc6 {[%emt 0:00:00]} 5. Nc3 {[%emt 0:00:05]} Qc7 {[%emt 0:00:00]} 6. Be3 {[%emt 0:00:22]} a6 {[%emt 0:00:00]} 7. Qd2 {[%emt 0:00:28]} Nf6 {[%emt 0:00:19]} 8. f3 {[%emt 0:00:46]} Be7 {[%emt 0:00:56]} 9. O-O-O {[%emt 0:00:21]} b5 {[%emt 0:00:03]} 10. Kb1 {[%emt 0:03:55]} Nxd4 {[%emt 0:00:27]} 11. Qxd4 {[%emt 0:02:34]} Bb7 {[%emt 0:00:51]} 12. g4 {[%emt 0:05:04]} Rc8 {[%emt 0:01:29]} 13. Qd3 {[%emt 0:08:53]} b4 {[%emt 0:04:07]} 14. Ne2 {[%emt 0:03:14]} d5 {[%emt 0:00:25]} 15. exd5 {[%emt 0:02:50]} Bxd5 {[%emt 0:02:58]} 16. g5 {[%emt 0:06:18]} Nd7 {[%emt 0:04:56]} 17. Bf4 {[%emt 0:03:20]} Qa5 {[%emt 0:18:00]} 18. Nc1 {[%emt 0:01:36]} Nc5 {[%emt 0:04:53]} 19. Qe3 {[%emt 0:00:23]} Qa4 {[%emt 0:09:58]} 20. Nb3 {[%emt 0:04:12]} Qc6 {[%emt 0:10:20]} 21. Nd4 {[%emt 0:04:46]} Qb7 {[%emt 0:00:05]} 22. h4 {[%emt 0:05:10]} Na4 {[%emt 0:03:29]} 23. Qe2 {[%emt 0:12:38]} Rc4 {[%emt 0:06:55]} 24. Qe5 {[%emt 0:06:46]} f6 {[%emt 0:06:27]} 25. Qe3 {[%emt 0:02:17]} Rxd4 {[%emt 0:02:41]} 26. Rxd4 {[%emt 0:00:21]} e5 {[%emt 0:03:19]} 27. Bxe5 {[%emt 0:02:20]} O-O {[%emt 0:06:19]} 28. gxf6 {[%emt 0:01:26]} Bc5 {[%emt 0:00:09]} 29. fxg7 {[%emt 0:00:21]} Re8 {[%emt 0:03:20]} 30. Bd3 {[%emt 0:03:00]} Qb6 {[%emt 0:01:49]} 31. Bxh7+ {[%emt 0:00:56]} Kxh7 {[%emt 0:00:03]} 32. Qd3+ {[%emt 0:00:07]} Kg8 {[%emt 0:00:04]} 33. Rxd5 {[%emt 0:00:10]} Nc3+ {[%emt 0:01:26]} 34. Bxc3 {[%emt 0:00:27]} 1-0